fUST/lending_fUST_20240223
["ID","MTS","AMOUNT","RATE_DAILY","PERIOD"]
[314908026,1708633856906,-317.81314813,0.00019452,2]
[314908027,1708633856917,-503.79,0.00019452,2]
[314908028,1708633856927,-543.04,0.00019452,2]
[314908029,1708633856936,-500.0,0.00019452,2]
[314908030,1708633856945,-500.0,0.00019452,2]
[314908031,1708633856954,-1642.49,0.00019452,2]
[314908032,1708633856963,-516.48,0.00019452,2]
[314908033,1708633856973,-740.1,0.00019452,2]
[314908034,1708633856982,-220.66,0.00019452,2]
[314908035,1708633856991,-791.39,0.00019452,2]
[314908036,1708633857000,-1792.26,0.00019452,2]
[314908037,1708633857010,-500.0,0.00019452,2]
[314908038,1708633857019,-500.0,0.00019452,2]
[314908039,1708633857028,-500.0,0.00019452,2]
[314908040,1708633857037,-500.0,0.00019452,2]
[314908041,1708633857047,-500.0,0.00019452,2]
[314908042,1708633857057,-500.0,0.00019452,2]
[314908043,1708633857067,-500.0,0.00019452,2]
[314908044,1708633857076,-500.0,0.00019452,2]
[314908045,1708633857086,-923.52,0.00019452,2]
[314908046,1708633857096,-3233.37,0.00019452,2]
[314908047,1708633857106,-500.0,0.00019452,2]
[314908048,1708633857115,-538.7,0.00019452,2]
[314908049,1708633857125,-904.85,0.00019452,2]
[314908050,1708633857135,-4381.18,0.00019452,2]
[314908051,1708633857144,-500.0,0.00019452,2]
[314908052,1708633857154,-500.0,0.00019452,2]
[314908053,1708633857166,-7696.41,0.00019452,2]
[314908054,1708633857176,-1884.18,0.00019452,2]
[314908055,1708633857186,-1327.18,0.00019452,2]
[314908056,1708633857196,-1780.74,0.00019452,2]
[314908057,1708633857206,-500.0,0.00019452,2]
[314908058,1708633857215,-500.0,0.00019452,2]
[314908059,1708633857224,-1632.74,0.00019452,2]
[314908060,1708633857234,-500.0,0.00019452,2]
[314908061,1708633857243,-500.0,0.00019452,2]
[314908062,1708633857252,-1612.54,0.00019452,2]
[314908063,1708633857262,-500.0,0.00019452,2]
[314908064,1708633857271,-500.0,0.00019452,2]
[314908065,1708633857281,-1053.79,0.00019452,2]
[314908066,1708633857291,-11908.73,0.00019452,2]
[314908067,1708633857301,-240.45,0.00019452,2]
[314908068,1708633857311,-500.0,0.00019452,2]
[314908069,1708633857322,-238.94,0.00019452,2]
[314908070,1708633857332,-2370.47,0.00019452,2]
[314908071,1708633857342,-500.0,0.00019452,2]
[314908072,1708633857352,-2531.45,0.00019452,2]
[314908073,1708633857362,-1045.87,0.00019452,2]
[314908074,1708633857371,-1396.42,0.00019452,2]
[314908075,1708633857381,-2026.21,0.00019452,2]
[314908076,1708633857390,-7209.76,0.00019452,2]
[314908077,1708633857400,-518.08991757,0.00019452,2]
[314908078,1708633857415,-2734.12,0.00019452,2]
[314908079,1708633857424,-450.62,0.00019452,2]
[314908080,1708633857433,-735.81,0.00019452,2]
[314908081,1708633857442,-500.0,0.00019452,2]
[314908082,1708633857453,-500.0,0.00019452,2]
[314908083,1708633857462,-2164.7,0.00019452,2]
[314908084,1708633857471,-500.0,0.00019452,2]
[314908085,1708633857480,-500.0,0.00019452,2]
[314908086,1708633857489,-440.11976334,0.00019452,2]
[314908087,1708633857499,-3044.01,0.00019452,2]
[314908088,1708633857509,-500.0,0.00019452,2]
[314908089,1708633857518,-852.66,0.00019452,2]
[314908090,1708633857528,-477.25,0.00019452,2]
[314908091,1708633857538,-500.0,0.00019452,2]
[314908092,1708633857547,-802.82,0.00019452,2]
[314908093,1708633857557,-500.0,0.00019452,2]
[314908094,1708633857566,-8610.37,0.00019452,2]
[314908095,1708633857576,-300.0,0.00019455,2]
[314908096,1708633857585,-1000.0,0.000195,2]
[314908097,1708633857594,-153.0,0.000195,2]
[314908098,1708633857603,-200.4746276,0.000195,2]
[314908099,1708633857613,-153.0,0.000195,2]
[314908100,1708633857622,-200.4746276,0.000195,2]
[314908101,1708633857632,-153.0,0.000195,2]
[314908102,1708633857642,-300.0,0.00019618,2]
[314908103,1708633857651,-166.666666,0.00019627,2]
[314908104,1708633857663,-153.0,0.000197,2]
[314908105,1708633857672,-153.5018833,0.000197,2]
[314908106,1708633857681,-200.4746276,0.000197,2]
[314908107,1708633857691,-500.0,0.00019725,2]
[314908108,1708633857700,-500.0,0.00019725,2]
[314908109,1708633857709,-500.0,0.00019725,2]
[314908110,1708633857718,-567.32,0.00019725,2]
[314908111,1708633857727,-567.32,0.00019725,2]
[314908112,1708633857736,-500.0,0.00019725,2]
[314908113,1708633857745,-500.0,0.00019725,2]
[314908114,1708633857754,-500.0,0.00019725,2]
[314908115,1708633857764,-500.0,0.00019725,2]
[314908116,1708633857773,-500.0,0.00019725,2]
[314908117,1708633857782,-500.0,0.00019726,2]
[314908118,1708633857791,-763.48,0.00019726,2]
[314908119,1708633857800,-500.0,0.00019726,2]
[314908120,1708633857809,-500.56299601,0.00019726,2]
[314908121,1708633857819,-500.0,0.00019726,2]
[314908122,1708633857828,-815.71,0.00019726,2]
[314908123,1708633857837,-503.79,0.00019726,2]
[314908124,1708633857847,-543.04,0.00019726,2]
[314908125,1708633857856,-500.0,0.00019726,2]
[314908126,1708633857956,-500.0,0.00019726,2]
[314908127,1708633857966,-1642.49,0.00019726,2]
[314908128,1708633857975,-516.48,0.00019726,2]
[314908129,1708633857985,-740.1,0.00019726,2]
[314908130,1708633857994,-791.39,0.00019726,2]
[314908131,1708633858003,-1792.26,0.00019726,2]
[314908132,1708633858013,-500.0,0.00019726,2]
[314908133,1708633858022,-500.0,0.00019726,2]
[314908134,1708633858031,-155.31,0.00019726,2]
[314908135,1708633858040,-500.0,0.00019726,2]
[314908136,1708633858049,-500.0,0.00019726,2]
[314908137,1708633858059,-500.0,0.00019726,2]
[314908138,1708633858068,-500.0,0.00019726,2]
[314908139,1708633858077,-923.52,0.00019726,2]
[314908140,1708633858086,-3233.37,0.00019726,2]
[314908141,1708633858096,-500.0,0.00019726,2]
[314908142,1708633858105,-538.7,0.00019726,2]
[314908143,1708633858113,-904.85,0.00019726,2]
[314908144,1708633858123,-4381.18,0.00019726,2]
[314908145,1708633858132,-176.16717505,0.00019726,2]
[314908146,1708633858141,-7696.41,0.00019726,2]
[314908147,1708633858151,-1884.18,0.00019726,2]
[314908148,1708633858162,-1327.18,0.00019726,2]
[314908149,1708633858171,-1780.74,0.00019726,2]
[314908150,1708633858180,-612.29435103,0.00019726,2]
[314908151,1708633858189,-262.29,0.00019726,2]
[314908152,1708633858198,-1632.74,0.00019726,2]
[314908153,1708633858207,-500.0,0.00019726,2]
[314908154,1708633858216,-477.56579186,0.00019726,2]
[314908155,1708633858225,-1612.54,0.00019726,2]
[314908156,1708633858234,-500.0,0.00019726,2]
[314908157,1708633858244,-500.0,0.00019726,2]
[314908158,1708633858253,-1053.79,0.00019726,2]
[314908159,1708633858262,-11908.73,0.00019726,2]
[314908160,1708633858271,-232.48,0.00019726,2]
[314908161,1708633858280,-2370.47,0.00019726,2]
[314908162,1708633858290,-500.0,0.00019726,2]
[314908163,1708633858299,-2531.45,0.00019726,2]
[314908164,1708633858309,-1045.87,0.00019726,2]
[314908165,1708633858318,-1396.42,0.00019726,2]
[314908166,1708633858329,-2026.21,0.00019726,2]
[314908167,1708633858339,-7209.76,0.00019726,2]
[314908168,1708633858348,-184.27824307,0.00019726,2]
[314908169,1708633858383,-2549.84175693,0.00019726,2]
[314908170,1708633858393,-735.81,0.00019726,2]
[314908171,1708633858403,-473.06117471,0.00019726,2]
[314908295,1708635033921,-162.7994663,0.00017665,2]
[314908297,1708635033930,-155.08374522,0.0001786,2]
[314908299,1708635033940,-311.3848696,0.00018153,2]
[314908301,1708635033949,-314.30114608,0.000189,2]
[314908303,1708635033959,-169.37820235,0.00019078,2]
[314908305,1708635033968,-465.47482355,0.00019078,2]
[314908307,1708635033976,-217.17038783,0.00019177,2]
[314908309,1708635033985,-500.4048006,0.00019178,2]
[314908310,1708635033995,-500.0,0.00019178,2]
[314908312,1708635034005,-500.0,0.00019178,2]
[314908314,1708635034014,-500.0,0.00019178,2]
[314908316,1708635034023,-500.0,0.00019178,2]
[314908318,1708635034032,-500.0,0.00019178,2]
[314908320,1708635034041,-500.0,0.00019178,2]
[314908322,1708635034050,-500.0,0.00019178,2]
[314908324,1708635034059,-500.0,0.00019178,2]
[314908326,1708635034068,-500.0,0.00019178,2]
[314908328,1708635034077,-500.0,0.00019178,2]
[314908329,1708635034086,-500.0,0.00019178,2]
[314908331,1708635034095,-500.0,0.00019178,2]
[314908333,1708635034105,-500.0,0.00019178,2]
[314908335,1708635034114,-500.0,0.00019178,2]
[314908336,1708635034125,-500.0,0.00019178,2]
[314908338,1708635034134,-500.0,0.00019178,2]
[314908340,1708635034143,-500.0,0.00019178,2]
[314908342,1708635034152,-500.0,0.00019178,2]
[314908344,1708635034161,-500.0,0.00019178,2]
[314908346,1708635034170,-500.0,0.00019178,2]
[314908348,1708635034180,-500.0,0.00019178,2]
[314908350,1708635034190,-500.0,0.00019178,2]
[314908352,1708635034199,-500.0,0.00019178,2]
[314908354,1708635034208,-500.0,0.00019178,2]
[314908356,1708635034218,-359.59169093,0.00019178,2]
[314908357,1708635034227,-500.0,0.00019178,2]
[314908359,1708635034236,-500.0,0.00019178,2]
[314908361,1708635034246,-500.0,0.00019178,2]
[314908363,1708635034255,-500.0,0.00019178,2]
[314908365,1708635034264,-151.0,0.00019178,2]
[314908367,1708635034273,-500.0,0.00019178,2]
[314908369,1708635034283,-500.0,0.00019178,2]
[314908371,1708635034292,-500.0,0.00019178,2]
[314908373,1708635034300,-500.0,0.00019178,2]
[314908375,1708635034310,-799.45,0.00019178,2]
[314908377,1708635034319,-500.0,0.00019178,2]
[314908378,1708635034328,-500.0,0.00019178,2]
[314908379,1708635034337,-254.66965508,0.00019178,2]
[314908380,1708635034346,-506.73604209,0.00019178,2]
[314908381,1708635034356,-500.0,0.00019178,2]
[314908382,1708635034366,-477.21577189,0.00019178,2]
[314908383,1708635034376,-500.0,0.00019178,2]
[314908384,1708635034386,-500.0,0.00019178,2]
[314908385,1708635034395,-500.0,0.00019178,2]
[314908386,1708635034405,-500.67376292,0.00019178,2]
[314908387,1708635034415,-500.0,0.00019178,2]
[314908388,1708635034425,-1000.0,0.00019178,2]
[314908389,1708635034435,-500.0,0.00019178,2]
[314908390,1708635034444,-500.0,0.00019178,2]
[314908391,1708635034453,-500.0,0.00019178,2]
[314908392,1708635034463,-500.0,0.00019178,2]
[314908393,1708635034472,-500.0,0.00019178,2]
[314908394,1708635034482,-228.96648004,0.00019178,2]
[314908395,1708635034491,-500.0,0.00019178,2]
[314908396,1708635034500,-500.0,0.00019178,2]
[314908397,1708635034510,-500.0,0.00019178,2]
[314908398,1708635034519,-500.0,0.00019178,2]
[314908399,1708635034529,-500.0,0.00019178,2]
[314908400,1708635034538,-500.0,0.00019178,2]
[314908401,1708635034549,-500.0,0.00019178,2]
[314908402,1708635034559,-500.0,0.00019178,2]
[314908403,1708635034568,-500.0,0.00019178,2]
[314908404,1708635034578,-500.0,0.00019178,2]
[314908405,1708635034587,-200.41345025,0.00019178,2]
[314908406,1708635034596,-500.0,0.00019178,2]
[314908407,1708635034606,-515.89,0.00019178,2]
[314908408,1708635034617,-500.0,0.00019178,2]
[314908409,1708635034626,-1000.0,0.00019178,2]
[314908410,1708635034635,-500.0,0.00019178,2]
[314908411,1708635034644,-500.54892052,0.00019178,2]
[314908412,1708635034654,-500.0,0.00019178,2]
[314908413,1708635034663,-500.0,0.00019178,2]
[314908414,1708635034672,-515.18,0.00019178,2]
[314908415,1708635034681,-500.0,0.00019178,2]
[314908416,1708635034690,-500.0,0.00019178,2]
[314908417,1708635034699,-500.0,0.00019178,2]
[314908420,1708635034823,-500.0,0.00019178,2]
[314908421,1708635034834,-500.0,0.00019178,2]
[314908423,1708635034845,-284.39594045,0.00019178,2]
[314908425,1708635034855,-500.0,0.00019178,2]
[314908428,1708635034866,-500.0,0.00019178,2]
[314908429,1708635034875,-500.0,0.00019178,2]
[314908431,1708635034885,-530.46,0.00019178,2]
[314908433,1708635034893,-500.0,0.00019178,2]
[314908435,1708635034903,-548.59346291,0.00019178,2]
[314908437,1708635034912,-500.0,0.00019178,2]
[314908439,1708635034921,-500.0,0.00019178,2]
[314908440,1708635034930,-181.4146153,0.00019178,2]
[314908442,1708635034940,-639.17776744,0.00019178,2]
[314908443,1708635034949,-866.93,0.00019178,2]
[314908445,1708635034958,-1697.39,0.00019178,2]
[314908447,1708635034967,-500.0,0.00019178,2]
[314908449,1708635034976,-500.0,0.00019178,2]
[314908451,1708635034986,-500.0,0.00019178,2]
[314908452,1708635034995,-500.0,0.00019178,2]
[314908454,1708635035004,-500.0,0.00019178,2]
[314908456,1708635035013,-601.43165314,0.00019178,2]
[314908458,1708635035023,-500.0,0.00019178,2]
[314908460,1708635035034,-500.0,0.00019178,2]
[314908462,1708635035044,-500.0,0.00019178,2]
[314908463,1708635035054,-500.0,0.00019178,2]
[314908465,1708635035064,-1878.62,0.00019178,2]
[314908467,1708635035073,-500.0,0.00019178,2]
[314908469,1708635035083,-500.0,0.00019178,2]
[314908471,1708635035092,-434.01898382,0.00019178,2]
[314908473,1708635035102,-240.71576703,0.00019178,2]
[314908475,1708635035111,-500.0,0.00019178,2]
[314908477,1708635035122,-500.0,0.00019178,2]
[314908478,1708635035133,-500.0,0.00019178,2]
[314908480,1708635035143,-500.0,0.00019178,2]
[314908482,1708635035153,-500.0,0.00019178,2]
[314908484,1708635035162,-500.0,0.00019178,2]
[314908486,1708635035172,-1000.0,0.00019178,2]
[314908488,1708635035181,-378.40337523,0.00019178,2]
[314908490,1708635035197,-121.59662477,0.00019178,2]
[314908492,1708635035207,-500.0,0.00019178,2]
[314908494,1708635035216,-500.0,0.00019178,2]
[314908496,1708635035226,-500.0,0.00019178,2]
[314908498,1708635035237,-500.0,0.00019178,2]
[314908500,1708635035247,-500.0,0.00019178,2]
[314908501,1708635035257,-103.04682404,0.00019178,2]
[314908504,1708635035270,-396.95317596,0.00019178,2]
[314908505,1708635035279,-500.0,0.00019178,2]
[314908507,1708635035288,-500.0,0.00019178,2]
[314908509,1708635035298,-500.0,0.00019178,2]
[314908511,1708635035307,-338.29726793,0.00019178,2]
[314908513,1708635035319,-161.70273207,0.00019178,2]
[314908515,1708635035329,-500.0,0.00019178,2]
[314908517,1708635035339,-500.0,0.00019178,2]
[314908519,1708635035348,-500.0,0.00019178,2]
[314908521,1708635035358,-500.0,0.00019178,2]
[314908523,1708635035368,-500.0,0.00019178,2]
[314908525,1708635035379,-500.0,0.00019178,2]
[314908527,1708635035389,-500.0,0.00019178,2]
[314908528,1708635035398,-500.0,0.00019178,2]
[314908530,1708635035409,-500.0,0.00019178,2]
[314908532,1708635035418,-500.0,0.00019178,2]
[314908534,1708635035429,-489.41836535,0.00019178,2]
[314908536,1708635035439,-500.0,0.00019178,2]
[314908538,1708635035449,-500.0,0.00019178,2]
[314908540,1708635035459,-500.0,0.00019178,2]
[314908542,1708635035467,-500.0,0.00019178,2]
[314908544,1708635035478,-30.56890258,0.00019178,2]
[314908720,1708635037887,-469.43109742,0.00019178,2]
[314908721,1708635037897,-500.0,0.00019178,2]
[314908722,1708635037907,-500.0,0.00019178,2]
[314908723,1708635037916,-500.0,0.00019178,2]
[314908724,1708635037925,-406.92666424,0.00019178,2]
[314908725,1708635037937,-93.07333576,0.00019178,2]
[314908726,1708635037946,-500.0,0.00019178,2]
[314908727,1708635037955,-500.0,0.00019178,2]
[314908728,1708635037964,-461.39841829,0.00019178,2]
[314908729,1708635037976,-90.9163066,0.00019178,2]
[314908730,1708635037985,-500.0,0.00019178,2]
[314908731,1708635037994,-293.3726934,0.00019178,2]
[314908852,1708635041099,-207.82960315,0.00019178,2]
[314908854,1708635041110,-500.0,0.00019178,2]
[314908856,1708635041120,-500.0,0.00019178,2]
[314908858,1708635041131,-500.0,0.00019178,2]
[314908860,1708635041140,-420.32759426,0.00019178,2]
[314908862,1708635041149,-500.0,0.00019178,2]
[314908864,1708635041159,-241.23396741,0.00019178,2]
[314908866,1708635041168,-522.939739,0.00019178,2]
[314908868,1708635041177,-500.0,0.00019178,2]
[314908870,1708635041187,-500.0,0.00019178,2]
[314908872,1708635041196,-500.0,0.00019178,2]
[314908874,1708635041206,-500.0,0.00019178,2]
[314908875,1708635041215,-500.0,0.00019178,2]
[314908877,1708635041225,-500.0,0.00019178,2]
[314908879,1708635041234,-500.0,0.00019178,2]
[314908881,1708635041243,-181.0906681,0.00019178,2]
[314908884,1708635041255,-318.9093319,0.00019178,2]
[314908886,1708635041264,-500.0,0.00019178,2]
[314908888,1708635041273,-500.0,0.00019178,2]
[314908889,1708635041282,-287.92525621,0.00019178,2]
[314908892,1708635041295,-138.45751463,0.00019178,2]
[314908894,1708635041304,-500.0,0.00019178,2]
[314908896,1708635041313,-500.0,0.00019178,2]
[314908898,1708635041323,-500.0,0.00019178,2]
[314908900,1708635041332,-500.0,0.00019178,2]
[314908901,1708635041341,-342.28907035,0.00019178,2]
[314908903,1708635041350,-284.43298336,0.00019178,2]
[314908905,1708635041359,-500.0,0.00019178,2]
[314908907,1708635041368,-500.0,0.00019178,2]
[314908909,1708635041379,-500.0,0.00019178,2]
[314908911,1708635041388,-500.0,0.00019178,2]
[314908913,1708635041397,-500.0,0.00019178,2]
[314908915,1708635041406,-500.0,0.00019178,2]
[314908917,1708635041415,-500.0,0.00019178,2]
[314908919,1708635041425,-500.0,0.00019178,2]
[314908921,1708635041434,-500.0,0.00019178,2]
[314908923,1708635041443,-500.0,0.00019178,2]
[314908925,1708635041452,-500.0,0.00019178,2]
[314908927,1708635041462,-500.0,0.00019178,2]
[314908929,1708635041472,-500.0,0.00019178,2]
[314908931,1708635041481,-500.0,0.00019178,2]
[314908933,1708635041490,-500.0,0.00019178,2]
[314908935,1708635041499,-500.0,0.00019178,2]
[314908937,1708635041508,-500.0,0.00019178,2]
[314908939,1708635041517,-500.0,0.00019178,2]
[314908940,1708635041526,-500.0,0.00019178,2]
[314908942,1708635041535,-500.0,0.00019178,2]
[314908944,1708635041544,-500.0,0.00019178,2]
[314908946,1708635041554,-500.0,0.00019178,2]
[314908948,1708635041563,-500.0,0.00019178,2]
[314908950,1708635041573,-500.0,0.00019178,2]
[314908952,1708635041582,-500.0,0.00019178,2]
[314908954,1708635041592,-500.0,0.00019178,2]
[314908956,1708635041601,-500.0,0.00019178,2]
[314908958,1708635041611,-500.0,0.00019178,2]
[314908960,1708635041620,-500.0,0.00019178,2]
[314908962,1708635041631,-500.0,0.00019178,2]
[314908963,1708635041640,-500.0,0.00019178,2]
[314908965,1708635041649,-500.0,0.00019178,2]
[314908967,1708635041658,-500.0,0.00019178,2]
[314908969,1708635041667,-500.0,0.00019178,2]
[314908971,1708635041677,-500.65767125,0.00019178,2]
[314908973,1708635041686,-195.09958943,0.00019178,2]
[314908976,1708635041698,-159.90041057,0.00019178,2]
[314908977,1708635041707,-500.0,0.00019178,2]
[314908979,1708635041716,-259.8562566,0.00019178,2]
[314908981,1708635041725,-500.0,0.00019178,2]
[314908983,1708635041736,-500.0,0.00019178,2]
[314908985,1708635041746,-500.0,0.00019178,2]
[314908987,1708635041755,-295.20371378,0.00019178,2]
[314908989,1708635041769,-204.79628622,0.00019178,2]
[314908991,1708635041778,-500.0,0.00019178,2]
[314908993,1708635041788,-500.0,0.00019178,2]
[314908995,1708635041798,-573.15830984,0.00019178,2]
[314908997,1708635041808,-500.0,0.00019178,2]
[314908999,1708635041816,-500.0,0.00019178,2]
[314909001,1708635041826,-412.07836257,0.00019178,2]
[314909003,1708635041839,-87.92163743,0.00019178,2]
[314909005,1708635041848,-501.0634752,0.00019178,2]
[314909007,1708635041858,-500.33716113,0.00019178,2]
[314909009,1708635041867,-500.0,0.00019178,2]
[314909011,1708635041879,-500.0,0.00019178,2]
[314909013,1708635041888,-500.0,0.00019178,2]
[314909015,1708635041898,-160.0,0.00019178,2]
[314909017,1708635041906,-500.0,0.00019178,2]
[314909018,1708635041916,-500.0,0.00019178,2]
[314909020,1708635041925,-500.0,0.00019178,2]
[314909022,1708635041935,-500.0,0.00019178,2]
[314909024,1708635041945,-500.0,0.00019178,2]
[314909026,1708635041954,-198.31438666,0.00019178,2]
[314909329,1708635045982,-301.68561334,0.00019178,2]
[314909331,1708635045991,-362.47706303,0.00019178,2]
[314912559,1708635085066,151.56820039,0.00016601,2]
[314912881,1708636232122,-156.86619303,0.000176,2]
[314912883,1708636232133,-2715.19569661,0.00017907,2]
[314912885,1708636232144,-4479.82347762,0.00017908,2]
[314913043,1708636239072,-20420.17652238,0.00017908,2]
[314913044,1708636239084,-5874.8950045,0.00017912,2]
[314913045,1708636239094,-209.53409738,0.000189,2]
[314913046,1708636239106,-179.11658626,0.00019078,2]
[314913047,1708636239119,-799.51119089,0.00019078,2]
[314913049,1708636241206,-4378.55748701,0.00019078,2]
[314913050,1708636241218,-151.77772698,0.00019082,2]
[314913051,1708636241230,-518.29717071,0.00019129,2]
[314913077,1708636243469,-101.70298536,0.00019129,2]
[314913079,1708636243480,-10406.40158893,0.00019177,2]
[314913576,1708636248368,-2715.19569661,0.00019176,2]
[314913578,1708636248381,-980.01940748,0.00019177,2]
[314913585,1708636248433,-280.4,0.00019177,2]
[314913587,1708636248446,-34491.00575768,0.00019177,2]
[314913589,1708636248456,-137.52293697,0.00019178,2]
[314913591,1708636248466,-500.0,0.00019178,2]
[314913593,1708636248476,-500.0,0.00019178,2]
[314913595,1708636248486,-500.0,0.00019178,2]
[314913597,1708636248496,-500.0,0.00019178,2]
[314913599,1708636248505,-500.0,0.00019178,2]
[314913601,1708636248514,-348.03151231,0.00019178,2]
[314913603,1708636248524,-500.0,0.00019178,2]
[314913605,1708636248533,-355.91954918,0.00019178,2]
[314913607,1708636248543,-500.0,0.00019178,2]
[314913609,1708636248552,-272.35351792,0.00019178,2]
[314913611,1708636248561,-400.0,0.00019178,2]
[314913612,1708636248571,-500.0,0.00019178,2]
[314913614,1708636248580,-500.0,0.00019178,2]
[314913616,1708636248589,-500.0,0.00019178,2]
[314913618,1708636248598,-500.0,0.00019178,2]
[314913620,1708636248607,-500.0,0.00019178,2]
[314913622,1708636248617,-516.57553682,0.00019178,2]
[314913624,1708636248630,-500.0,0.00019178,2]
[314913626,1708636248639,-500.0,0.00019178,2]
[314913628,1708636248653,-500.0,0.00019178,2]
[314913630,1708636248662,-372.15459665,0.00019178,2]
[314913632,1708636248671,-500.0,0.00019178,2]
[314913634,1708636248680,-500.0,0.00019178,2]
[314913636,1708636248690,-500.0,0.00019178,2]
[314913638,1708636248699,-500.0,0.00019178,2]
[314913640,1708636248708,-500.0,0.00019178,2]
[314913642,1708636248718,-500.0,0.00019178,2]
[314913644,1708636248727,-500.0,0.00019178,2]
[314913646,1708636248736,-500.0,0.00019178,2]
[314913648,1708636248745,-500.0,0.00019178,2]
[314913650,1708636248754,-500.0,0.00019178,2]
[314913652,1708636248763,-500.0,0.00019178,2]
[314913654,1708636248772,-500.0,0.00019178,2]
[314913655,1708636248782,-500.0,0.00019178,2]
[314913657,1708636248791,-500.0,0.00019178,2]
[314913659,1708636248800,-500.0,0.00019178,2]
[314913661,1708636248810,-500.0,0.00019178,2]
[314913663,1708636248819,-500.0,0.00019178,2]
[314913665,1708636248827,-500.0,0.00019178,2]
[314913667,1708636248837,-500.0,0.00019178,2]
[314913669,1708636248880,-350.0,0.00019178,2]
[314913671,1708636248889,-500.0,0.00019178,2]
[314913674,1708636248899,-500.0,0.00019178,2]
[314913675,1708636248908,-500.0,0.00019178,2]
[314913678,1708636248918,-500.0,0.00019178,2]
[314913680,1708636248928,-500.0,0.00019178,2]
[314913682,1708636248937,-500.0,0.00019178,2]
[314913683,1708636248946,-500.0,0.00019178,2]
[314913685,1708636248955,-500.0,0.00019178,2]
[314913687,1708636248964,-500.0,0.00019178,2]
[314913689,1708636248974,-500.0,0.00019178,2]
[314913691,1708636248983,-500.0,0.00019178,2]
[314913693,1708636248992,-637.35657656,0.00019178,2]
[314913695,1708636249001,-500.0,0.00019178,2]
[314913697,1708636249010,-500.0,0.00019178,2]
[314913699,1708636249019,-500.0,0.00019178,2]
[314913701,1708636249028,-500.0,0.00019178,2]
[314913703,1708636249037,-500.0,0.00019178,2]
[314913705,1708636249046,-500.0,0.00019178,2]
[314913707,1708636249055,-450.0,0.00019178,2]
[314913709,1708636249064,-500.0,0.00019178,2]
[314913711,1708636249074,-500.0,0.00019178,2]
[314913713,1708636249083,-500.0,0.00019178,2]
[314913715,1708636249093,-500.0,0.00019178,2]
[314913717,1708636249102,-500.0,0.00019178,2]
[314913719,1708636249112,-500.0,0.00019178,2]
[314913721,1708636249124,-500.0,0.00019178,2]
[314913723,1708636249136,-500.0,0.00019178,2]
[314913725,1708636249148,-500.0,0.00019178,2]
[314913727,1708636249157,-500.0,0.00019178,2]
[314913729,1708636249167,-500.0,0.00019178,2]
[314913731,1708636249177,-500.0,0.00019178,2]
[314913733,1708636249186,-500.0,0.00019178,2]
[314913735,1708636249195,-500.0,0.00019178,2]
[314913737,1708636249204,-500.0,0.00019178,2]
[314913739,1708636249216,-500.0,0.00019178,2]
[314913741,1708636249226,-500.0,0.00019178,2]
[314913743,1708636249235,-320.0,0.00019178,2]
[314913745,1708636249244,-500.0,0.00019178,2]
[314913747,1708636249253,-500.0,0.00019178,2]